[Event "Early-Titled-Tuesday-Blitz-April-23-2024"]
[Site "Chess.com"]
[Date "2024.04.23"]
[Round "8"]
[White "ozates"]
[Black "only_strong_moves"]
[Result "1-0"]
[WhiteElo "2565"]
[BlackElo "2695"]
[TimeControl "180+1"]
[EndTime "9:31:06 PDT"]
[Termination "ozates won by resignation"]

1. e4 {[%clk 0:03:00.9]} 1... d5 {[%clk 0:02:59.4]} 2. exd5 {[%clk 0:02:59.1]}
2... Qxd5 {[%clk 0:03:00.3]} 3. Nc3 {[%clk 0:02:59.5]} 3... Qa5 {[%clk
0:03:00.4]} 4. d4 {[%clk 0:03:00.4]} 4... Nf6 {[%clk 0:02:59.8]} 5. h3 {[%clk
0:03:01]} 5... h5 {[%clk 0:02:59.1]} 6. Nf3 {[%clk 0:02:59.3]} 6... Bf5 {[%clk
0:02:58.8]} 7. Ne5 {[%clk 0:02:58.4]} 7... c6 {[%clk 0:02:57.2]} 8. Bc4 {[%clk
0:02:55.8]} 8... e6 {[%clk 0:02:57]} 9. Qe2 {[%clk 0:02:55.4]} 9... Nbd7 {[%clk
0:02:54.8]} 10. Bd2 {[%clk 0:02:53.8]} 10... Nxe5 {[%clk 0:02:53.3]} 11. dxe5
{[%clk 0:02:53.6]} 11... Nd7 {[%clk 0:02:52.4]} 12. Bf4 {[%clk 0:02:42.9]} 12...
Bb4 {[%clk 0:02:49.8]} 13. O-O {[%clk 0:02:27.8]} 13... Bxc3 {[%clk 0:02:47.4]}
14. bxc3 {[%clk 0:02:28.7]} 14... Qxc3 {[%clk 0:02:47.6]} 15. Bb3 {[%clk
0:02:25.1]} 15... O-O-O {[%clk 0:02:37.6]} 16. Bg5 {[%clk 0:02:09.1]} 16... Rdg8
{[%clk 0:02:33.2]} 17. Rfd1 {[%clk 0:02:08.1]} 17... Qxe5 {[%clk 0:02:23.5]} 18.
Qf3 {[%clk 0:02:01]} 18... Qe4 {[%clk 0:01:54.3]} 19. Qc3 {[%clk 0:01:45.1]}
19... Qe5 {[%clk 0:01:42.9]} 20. Qf3 {[%clk 0:01:19.9]} 20... Qc7 {[%clk
0:01:16.8]} 21. Bf4 {[%clk 0:01:16.3]} 21... Ne5 {[%clk 0:01:04.6]} 22. Qe3
{[%clk 0:01:15.9]} 22... f6 {[%clk 0:01:04.9]} 23. Bxe5 {[%clk 0:01:12.4]} 23...
Qxe5 {[%clk 0:01:00.1]} 24. Qxa7 {[%clk 0:01:13]} 24... Rd8 {[%clk 0:00:53.3]}
25. Re1 {[%clk 0:01:09.6]} 25... Qc3 {[%clk 0:00:44.1]} 26. Rab1 {[%clk
0:01:03.4]} 26... Rd7 {[%clk 0:00:28.8]} 27. Qa8+ {[%clk 0:00:54.7]} 27... Kc7
{[%clk 0:00:28.9]} 28. Qxh8 {[%clk 0:00:55.6]} 28... Bxh3 {[%clk 0:00:19.3]} 29.
gxh3 {[%clk 0:00:48.8]} 29... Qxh3 {[%clk 0:00:20.2]} 30. Bxe6 {[%clk
0:00:47.4]} 30... Qh4 {[%clk 0:00:16.1]} 31. Bxd7 {[%clk 0:00:40.2]} 1-0

[Event "Early-Titled-Tuesday-Blitz-April-23-2024"]
[Site "Chess.com"]
[Date "2024.04.23"]
[Round "8"]
[White "DonJuanEGenaro"]
[Black "Manukyan_Artak"]
[Result "0-1"]
[WhiteElo "2049"]
[BlackElo "2464"]
[TimeControl "180+1"]
[EndTime "9:31:07 PDT"]
[Termination "Manukyan_Artak won by resignation"]

1. d4 {[%clk 0:02:54.3]} 1... d5 {[%clk 0:02:59.3]} 2. Nf3 {[%clk 0:02:54]} 2...
Nf6 {[%clk 0:02:56.4]} 3. c4 {[%clk 0:02:51.7]} 3... dxc4 {[%clk 0:02:54.6]} 4.
Nc3 {[%clk 0:02:46.7]} 4... c5 {[%clk 0:02:51.9]} 5. d5 {[%clk 0:02:40.1]} 5...
e6 {[%clk 0:02:51.7]} 6. e4 {[%clk 0:02:38.9]} 6... exd5 {[%clk 0:02:51.5]} 7.
exd5 {[%clk 0:02:38.7]} 7... a6 {[%clk 0:02:50.6]} 8. Bxc4 {[%clk 0:02:37.8]}
8... b5 {[%clk 0:02:49.8]} 9. Bb3 {[%clk 0:02:31.1]} 9... c4 {[%clk 0:02:47.4]}
10. Bc2 {[%clk 0:02:30.7]} 10... Bb4 {[%clk 0:02:36.6]} 11. O-O {[%clk
0:01:57.9]} 11... O-O {[%clk 0:02:30.1]} 12. Bg5 {[%clk 0:01:54.4]} 12... h6
{[%clk 0:02:05.6]} 13. Bxf6 {[%clk 0:01:43.8]} 13... Qxf6 {[%clk 0:01:53.9]} 14.
Nd4 {[%clk 0:01:37.2]} 14... Rd8 {[%clk 0:01:48.3]} 15. Ne4 {[%clk 0:01:26.8]}
15... Qe5 {[%clk 0:01:37.7]} 16. Re1 {[%clk 0:01:06.5]} 16... Bxe1 {[%clk
0:01:33.1]} 17. Nf3 {[%clk 0:01:00.2]} 17... Bxf2+ {[%clk 0:01:29.5]} 18. Kxf2
{[%clk 0:00:59.6]} 18... Qxb2 {[%clk 0:01:29.7]} 19. Rb1 {[%clk 0:00:47.1]}
19... Qa3 {[%clk 0:01:29.9]} 20. Qd4 {[%clk 0:00:38.8]} 20... Nd7 {[%clk
0:01:25.2]} 21. Re1 {[%clk 0:00:34.1]} 21... Qxa2 {[%clk 0:01:19.9]} 22. Re2
{[%clk 0:00:32.6]} 22... Qa5 {[%clk 0:01:15.3]} 23. Ne5 {[%clk 0:00:29.1]} 23...
Nxe5 {[%clk 0:01:11.4]} 24. Qxe5 {[%clk 0:00:28.8]} 24... Bg4 {[%clk 0:01:08.1]}
25. Rd2 {[%clk 0:00:11.6]} 25... f5 {[%clk 0:01:01.4]} 26. Qe6+ {[%clk
0:00:10.7]} 26... Kh8 {[%clk 0:00:54.9]} 27. Nf6 {[%clk 0:00:10.3]} 27... Qxd2+
{[%clk 0:00:47.4]} 28. Kg3 {[%clk 0:00:09.6]} 28... Qxc2 {[%clk 0:00:42.1]} 0-1

[Event "Early-Titled-Tuesday-Blitz-April-23-2024"]
[Site "Chess.com"]
[Date "2024.04.23"]
[Round "8"]
[White "jk13"]
[Black "szachuspl"]
[Result "1-0"]
[WhiteElo "2688"]
[BlackElo "2533"]
[TimeControl "180+1"]
[EndTime "9:31:09 PDT"]
[Termination "jk13 won by resignation"]

1. d4 {[%clk 0:02:56.2]} 1... Nf6 {[%clk 0:02:59.8]} 2. Bg5 {[%clk 0:02:55.8]}
2... d5 {[%clk 0:02:58.1]} 3. Nd2 {[%clk 0:02:55.4]} 3... Nbd7 {[%clk
0:02:55.9]} 4. e3 {[%clk 0:02:55.2]} 4... e6 {[%clk 0:02:54.4]} 5. Bd3 {[%clk
0:02:53.8]} 5... Be7 {[%clk 0:02:54.5]} 6. c3 {[%clk 0:02:52.1]} 6... c5 {[%clk
0:02:54.6]} 7. f4 {[%clk 0:02:52.1]} 7... O-O {[%clk 0:02:54.3]} 8. Ngf3 {[%clk
0:02:52.5]} 8... b6 {[%clk 0:02:50.6]} 9. O-O {[%clk 0:02:52.2]} 9... Bb7 {[%clk
0:02:50.7]} 10. Ne5 {[%clk 0:02:52.5]} 10... Ne4 {[%clk 0:02:49.3]} 11. Bxe7
{[%clk 0:02:49.3]} 11... Qxe7 {[%clk 0:02:49.3]} 12. Qc2 {[%clk 0:02:27]} 12...
Ndf6 {[%clk 0:02:35.3]} 13. Ndf3 {[%clk 0:02:22.7]} 13... g6 {[%clk 0:02:30.7]}
14. Ng5 {[%clk 0:02:14.8]} 14... h6 {[%clk 0:02:26]} 15. Nxe4 {[%clk 0:02:11.5]}
15... Nxe4 {[%clk 0:02:26]} 16. Rad1 {[%clk 0:01:57.1]} 16... Kg7 {[%clk
0:02:25.6]} 17. Qe2 {[%clk 0:01:47.1]} 17... f6 {[%clk 0:02:24.8]} 18. Nf3
{[%clk 0:01:45]} 18... a5 {[%clk 0:02:23.2]} 19. Nd2 {[%clk 0:01:39]} 19... Nxd2
{[%clk 0:02:16.2]} 20. Rxd2 {[%clk 0:01:37.8]} 20... f5 {[%clk 0:02:04.3]} 21.
g4 {[%clk 0:01:29.3]} 21... c4 {[%clk 0:01:57.5]} 22. Bc2 {[%clk 0:01:27.1]}
22... Qh4 {[%clk 0:01:54]} 23. Bd1 {[%clk 0:01:24.3]} 23... b5 {[%clk
0:01:52.6]} 24. Qf3 {[%clk 0:01:19.7]} 24... Kh7 {[%clk 0:01:51.3]} 25. Rg2
{[%clk 0:01:19.8]} 25... Rg8 {[%clk 0:01:50]} 26. Kh1 {[%clk 0:01:06.1]} 26...
Qe7 {[%clk 0:01:48]} 27. Rg3 {[%clk 0:01:05.1]} 27... Rh8 {[%clk 0:01:40.1]} 28.
Rfg1 {[%clk 0:01:03.8]} 28... Rag8 {[%clk 0:01:40.2]} 29. Qg2 {[%clk 0:01:01.6]}
29... Qf7 {[%clk 0:01:37]} 30. Qh3 {[%clk 0:00:54.7]} 30... Bc6 {[%clk
0:01:32.7]} 31. Qh4 {[%clk 0:00:49.1]} 31... b4 {[%clk 0:01:24.8]} 32. Bc2
{[%clk 0:00:47.7]} 32... b3 {[%clk 0:01:03.3]} 33. axb3 {[%clk 0:00:44.5]} 33...
cxb3 {[%clk 0:01:03.8]} 34. Bxb3 {[%clk 0:00:41.3]} 34... Rb8 {[%clk 0:01:03.7]}
35. gxf5 {[%clk 0:00:24.5]} 35... exf5 {[%clk 0:00:53.5]} 36. Rxg6 {[%clk
0:00:21.8]} 36... Qxg6 {[%clk 0:00:52.9]} 37. Qe7+ {[%clk 0:00:21.8]} 1-0

[Event "Early-Titled-Tuesday-Blitz-April-23-2024"]
[Site "Chess.com"]
[Date "2024.04.23"]
[Round "8"]
[White "Louis-Paulsen-Fan"]
[Black "Zarinur"]
[Result "0-1"]
[WhiteElo "2350"]
[BlackElo "2514"]
[TimeControl "180+1"]
[EndTime "9:31:14 PDT"]
[Termination "Zarinur won on time"]

1. d4 {[%clk 0:03:00.9]} 1... Nf6 {[%clk 0:02:57.6]} 2. Nf3 {[%clk 0:03:01]}
2... d5 {[%clk 0:02:57.4]} 3. c4 {[%clk 0:03:01.1]} 3... e6 {[%clk 0:02:57.7]}
4. Nc3 {[%clk 0:03:01.5]} 4... dxc4 {[%clk 0:02:58]} 5. Bg5 {[%clk 0:03:01.1]}
5... a6 {[%clk 0:02:50.8]} 6. e4 {[%clk 0:02:56.8]} 6... b5 {[%clk 0:02:48.7]}
7. e5 {[%clk 0:02:57.2]} 7... h6 {[%clk 0:02:48.4]} 8. Bh4 {[%clk 0:02:56.6]}
8... g5 {[%clk 0:02:48.2]} 9. exf6 {[%clk 0:02:37.6]} 9... gxh4 {[%clk
0:02:43.8]} 10. Ne5 {[%clk 0:02:35.6]} 10... Bb7 {[%clk 0:02:38.5]} 11. Nxf7
{[%clk 0:02:28.4]} 11... Qxf6 {[%clk 0:02:24.4]} 12. Nxh8 {[%clk 0:02:27.5]}
12... Qxh8 {[%clk 0:02:24.3]} 13. Qh5+ {[%clk 0:02:22]} 13... Kd8 {[%clk
0:02:24]} 14. O-O-O {[%clk 0:02:19.3]} 14... Nd7 {[%clk 0:02:24]} 15. d5 {[%clk
0:02:11]} 15... e5 {[%clk 0:02:23.3]} 16. Ne4 {[%clk 0:02:04.5]} 16... Be7
{[%clk 0:02:23.1]} 17. Be2 {[%clk 0:01:57.4]} 17... Qg7 {[%clk 0:02:12.4]} 18.
Bg4 {[%clk 0:01:52.7]} 18... Nc5 {[%clk 0:01:54.2]} 19. Nxc5 {[%clk 0:01:32.8]}
19... Bxc5 {[%clk 0:01:55.1]} 20. Qxh4+ {[%clk 0:01:30.2]} 20... Qg5+ {[%clk
0:01:54.9]} 21. Qxg5+ {[%clk 0:01:29.5]} 21... hxg5 {[%clk 0:01:55.8]} 22. h4
{[%clk 0:01:23.4]} 22... Bxf2 {[%clk 0:01:50.1]} 23. hxg5 {[%clk 0:01:22.3]}
23... Be3+ {[%clk 0:01:50.6]} 24. Kc2 {[%clk 0:01:21.8]} 24... Bxg5 {[%clk
0:01:50.9]} 25. Rh8+ {[%clk 0:01:15.9]} 25... Ke7 {[%clk 0:01:50.6]} 26. Rxa8
{[%clk 0:01:07.2]} 26... Bxa8 {[%clk 0:01:50.5]} 27. Bf3 {[%clk 0:01:01]} 27...
Kd6 {[%clk 0:01:48.7]} 28. Rh1 {[%clk 0:00:53.9]} 28... Kc5 {[%clk 0:01:44.2]}
29. Rh5 {[%clk 0:00:48.6]} 29... Bf4 {[%clk 0:01:39.1]} 30. Rh7 {[%clk
0:00:45.6]} 30... Kd4 {[%clk 0:01:35.7]} 31. Re7 {[%clk 0:00:19.9]} 31... Bxd5
{[%clk 0:01:21.4]} 32. Bxd5 {[%clk 0:00:17.7]} 32... Kxd5 {[%clk 0:01:22.3]} 33.
Rxc7 {[%clk 0:00:17.8]} 33... e4 {[%clk 0:01:21.1]} 34. Ra7 {[%clk 0:00:16.4]}
34... e3 {[%clk 0:01:19.7]} 35. Kd1 {[%clk 0:00:13]} 35... Be5 {[%clk
0:01:19.8]} 36. Rxa6 {[%clk 0:00:12.2]} 36... Bxb2 {[%clk 0:01:20.2]} 37. Ke2
{[%clk 0:00:11.9]} 37... Bd4 {[%clk 0:01:20.4]} 38. g4 {[%clk 0:00:11.6]} 38...
c3 {[%clk 0:01:20.2]} 39. Ra8 {[%clk 0:00:10.2]} 39... c2 {[%clk 0:01:18.9]} 40.
Rd8+ {[%clk 0:00:06.8]} 40... Kc4 {[%clk 0:01:18.7]} 41. Rc8+ {[%clk 0:00:06.2]}
41... Bc5 {[%clk 0:01:19.1]} 0-1

[Event "Early-Titled-Tuesday-Blitz-April-23-2024"]
[Site "Chess.com"]
[Date "2024.04.23"]
[Round "8"]
[White "ninguno46"]
[Black "AlexTruskavetsky"]
[Result "0-1"]
[WhiteElo "2537"]
[BlackElo "2691"]
[TimeControl "180+1"]
[EndTime "9:31:16 PDT"]
[Termination "AlexTruskavetsky won by resignation"]

1. e4 {[%clk 0:02:59.1]} 1... c5 {[%clk 0:03:00.2]} 2. Nc3 {[%clk 0:02:58.7]}
2... Nc6 {[%clk 0:03:00.5]} 3. f4 {[%clk 0:02:58.7]} 3... g6 {[%clk 0:02:59.3]}
4. Nf3 {[%clk 0:02:58.4]} 4... Bg7 {[%clk 0:02:59.9]} 5. Bb5 {[%clk 0:02:58.4]}
5... d6 {[%clk 0:03:00.2]} 6. O-O {[%clk 0:02:53.3]} 6... Bd7 {[%clk 0:02:59.7]}
7. Bxc6 {[%clk 0:02:48.1]} 7... Bxc6 {[%clk 0:03:00.6]} 8. d3 {[%clk 0:02:48.6]}
8... e6 {[%clk 0:02:53]} 9. a4 {[%clk 0:02:41.4]} 9... a6 {[%clk 0:02:49.3]} 10.
a5 {[%clk 0:02:40.6]} 10... b5 {[%clk 0:02:48.3]} 11. axb6 {[%clk 0:02:39.9]}
11... Qxb6 {[%clk 0:02:48.4]} 12. Kh1 {[%clk 0:02:39.9]} 12... Ne7 {[%clk
0:02:46.1]} 13. Qe1 {[%clk 0:02:15.8]} 13... O-O {[%clk 0:02:37.8]} 14. Qh4
{[%clk 0:02:12.4]} 14... f6 {[%clk 0:02:38.2]} 15. Rb1 {[%clk 0:01:49.5]} 15...
a5 {[%clk 0:02:34.6]} 16. Bd2 {[%clk 0:01:48.6]} 16... a4 {[%clk 0:02:34]} 17.
f5 {[%clk 0:01:17.9]} 17... gxf5 {[%clk 0:02:32.5]} 18. Bh6 {[%clk 0:01:13.8]}
18... Ng6 {[%clk 0:02:31.5]} 19. Qh5 {[%clk 0:01:13.8]} 19... fxe4 {[%clk
0:02:31]} 20. dxe4 {[%clk 0:01:06.9]} 20... Qb7 {[%clk 0:02:30.7]} 21. Rbd1
{[%clk 0:01:02]} 21... Rad8 {[%clk 0:02:28.7]} 22. Bc1 {[%clk 0:00:31.1]} 22...
Bxe4 {[%clk 0:02:22.3]} 23. Nxe4 {[%clk 0:00:29.7]} 23... Qxe4 {[%clk
0:02:23.2]} 24. Rde1 {[%clk 0:00:27.4]} 24... Qd5 {[%clk 0:02:20.2]} 25. Qh3
{[%clk 0:00:20.5]} 25... Qf5 {[%clk 0:02:19.5]} 26. Qg3 {[%clk 0:00:16.3]} 26...
Qxc2 {[%clk 0:02:11.5]} 27. Rxe6 {[%clk 0:00:14.9]} 27... Rde8 {[%clk
0:02:10.4]} 28. Rxd6 {[%clk 0:00:14.3]} 28... Qc4 {[%clk 0:02:08.3]} 29. Rg1
{[%clk 0:00:13.1]} 29... Re4 {[%clk 0:02:07.4]} 30. h3 {[%clk 0:00:12.4]} 30...
Rfe8 {[%clk 0:02:07.1]} 31. Rd7 {[%clk 0:00:12.1]} 31... R4e7 {[%clk 0:02:06.6]}
32. Rdd1 {[%clk 0:00:11.1]} 32... f5 {[%clk 0:02:03.6]} 33. Bg5 {[%clk
0:00:09.9]} 33... Rf7 {[%clk 0:02:02.2]} 34. Qd6 {[%clk 0:00:08]} 34... Bxb2
{[%clk 0:01:59.2]} 35. Rge1 {[%clk 0:00:06.9]} 35... Ref8 {[%clk 0:01:57.6]} 36.
Re6 {[%clk 0:00:05.8]} 36... Bg7 {[%clk 0:01:53]} 37. Qb6 {[%clk 0:00:04.7]}
37... a3 {[%clk 0:01:51.6]} 38. Rc6 {[%clk 0:00:03.8]} 38... a2 {[%clk
0:01:51.6]} 39. Rxc5 {[%clk 0:00:04.1]} 39... Qe2 {[%clk 0:01:51.7]} 40. Rcc1
{[%clk 0:00:03.8]} 40... Ne5 {[%clk 0:01:44]} 41. Qb3 {[%clk 0:00:04]} 41...
Nxf3 {[%clk 0:01:41.6]} 42. gxf3 {[%clk 0:00:04.9]} 42... a1=Q {[%clk
0:01:40.3]} 43. Rxa1 {[%clk 0:00:04.6]} 43... Bxa1 {[%clk 0:01:41.2]} 44. Rxa1
{[%clk 0:00:05.2]} 44... Kh8 {[%clk 0:01:40.1]} 45. Rg1 {[%clk 0:00:06.1]} 45...
Rg7 {[%clk 0:01:39.4]} 46. h4 {[%clk 0:00:04.7]} 46... Qe6 {[%clk 0:01:37.3]}
47. Qc3 {[%clk 0:00:04.8]} 47... Kg8 {[%clk 0:01:35]} 48. Bh6 {[%clk 0:00:04.5]}
48... Rxg1+ {[%clk 0:01:34.6]} 0-1

[Event "Early-Titled-Tuesday-Blitz-April-23-2024"]
[Site "Chess.com"]
[Date "2024.04.23"]
[Round "8"]
[White "David_George21"]
[Black "Likvidator228"]
[Result "0-1"]
[WhiteElo "2331"]
[BlackElo "2508"]
[TimeControl "180+1"]
[EndTime "9:31:16 PDT"]
[Termination "Likvidator228 won on time"]

1. e4 {[%clk 0:03:00.9]} 1... c5 {[%clk 0:03:00]} 2. Nf3 {[%clk 0:02:58.1]} 2...
g6 {[%clk 0:03:00.2]} 3. d4 {[%clk 0:02:58.2]} 3... cxd4 {[%clk 0:03:01.1]} 4.
Nxd4 {[%clk 0:02:58.1]} 4... Bg7 {[%clk 0:03:01.4]} 5. c4 {[%clk 0:02:58.7]}
5... Nc6 {[%clk 0:03:01.6]} 6. Be3 {[%clk 0:02:58.9]} 6... Qb6 {[%clk
0:03:01.5]} 7. Nb3 {[%clk 0:02:12.9]} 7... Qd8 {[%clk 0:03:00.1]} 8. Nc3 {[%clk
0:02:07.5]} 8... Nf6 {[%clk 0:03:00]} 9. Be2 {[%clk 0:02:03.8]} 9... d6 {[%clk
0:03:00.1]} 10. O-O {[%clk 0:02:03.6]} 10... O-O {[%clk 0:03:00.7]} 11. f3
{[%clk 0:02:02.3]} 11... Be6 {[%clk 0:02:55.2]} 12. Nd4 {[%clk 0:02:01.2]} 12...
Nxd4 {[%clk 0:02:54.2]} 13. Bxd4 {[%clk 0:02:02.1]} 13... Nd7 {[%clk 0:02:54.7]}
14. Bxg7 {[%clk 0:02:00.6]} 14... Kxg7 {[%clk 0:02:55.6]} 15. Kh1 {[%clk
0:01:52.8]} 15... Qb6 {[%clk 0:02:52.8]} 16. Qd2 {[%clk 0:01:52.4]} 16... a5
{[%clk 0:02:50.7]} 17. f4 {[%clk 0:01:50.8]} 17... f6 {[%clk 0:02:44.8]} 18. f5
{[%clk 0:01:42.7]} 18... Bf7 {[%clk 0:02:44.9]} 19. Rf3 {[%clk 0:01:40]} 19...
Ne5 {[%clk 0:02:37.2]} 20. Rh3 {[%clk 0:01:39.4]} 20... g5 {[%clk 0:02:37.5]}
21. Nd5 {[%clk 0:01:29.3]} 21... Bxd5 {[%clk 0:02:37]} 22. cxd5 {[%clk
0:01:30.2]} 22... h6 {[%clk 0:02:30.5]} 23. Rh5 {[%clk 0:01:21.1]} 23... Qb4
{[%clk 0:02:23.4]} 24. Qe3 {[%clk 0:00:23.2]} 24... Qxb2 {[%clk 0:02:23]} 25.
Rg1 {[%clk 0:00:23.4]} 25... Rac8 {[%clk 0:02:19.4]} 26. h4 {[%clk 0:00:22]}
26... Rc3 {[%clk 0:02:14.5]} 27. Qf2 {[%clk 0:00:19.6]} 27... Rc2 {[%clk
0:02:02]} 28. hxg5 {[%clk 0:00:19.4]} 28... hxg5 {[%clk 0:01:57.5]} 29. Re1
{[%clk 0:00:12.8]} 29... Rh8 {[%clk 0:01:40.7]} 30. Rxh8 {[%clk 0:00:12.2]}
30... Kxh8 {[%clk 0:01:41.6]} 31. Qe3 {[%clk 0:00:12.4]} 31... Kg7 {[%clk
0:01:39.1]} 32. Kg1 {[%clk 0:00:08.6]} 32... Qxa2 {[%clk 0:01:34.8]} 33. Bf1
{[%clk 0:00:07.8]} 33... Qb2 {[%clk 0:01:24.6]} 34. Rd1 {[%clk 0:00:02.4]} 34...
a4 {[%clk 0:01:23.8]} 35. Qh3 {[%clk 0:00:02.1]} 35... a3 {[%clk 0:01:17.3]} 36.
Qh5 {[%clk 0:00:02]} 36... Qb6+ {[%clk 0:01:04.7]} 37. Kh1 {[%clk 0:00:01.7]}
37... Qd8 {[%clk 0:01:04]} 38. Kg1 {[%clk 0:00:01.1]} 38... Qh8 {[%clk
0:01:03.4]} 0-1

[Event "Early-Titled-Tuesday-Blitz-April-23-2024"]
[Site "Chess.com"]
[Date "2024.04.23"]
[Round "8"]
[White "praveenb2002"]
[Black "ChessSwole"]
[Result "1-0"]
[WhiteElo "2886"]
[BlackElo "2709"]
[TimeControl "180+1"]
[EndTime "9:31:27 PDT"]
[Termination "praveenb2002 won by checkmate"]

1. c4 {[%clk 0:03:00.9]} 1... Nf6 {[%clk 0:02:57.4]} 2. Nc3 {[%clk 0:02:59.3]}
2... g6 {[%clk 0:02:57.2]} 3. g3 {[%clk 0:02:57.1]} 3... Bg7 {[%clk 0:02:56.4]}
4. Bg2 {[%clk 0:02:57.4]} 4... O-O {[%clk 0:02:55.6]} 5. d4 {[%clk 0:02:57.5]}
5... d6 {[%clk 0:02:55.7]} 6. Nf3 {[%clk 0:02:57.4]} 6... Nbd7 {[%clk
0:02:54.3]} 7. O-O {[%clk 0:02:56]} 7... e5 {[%clk 0:02:54.4]} 8. h3 {[%clk
0:02:56]} 8... exd4 {[%clk 0:02:52.6]} 9. Nxd4 {[%clk 0:02:55.5]} 9... Re8
{[%clk 0:02:52.2]} 10. e4 {[%clk 0:02:54.8]} 10... Nc5 {[%clk 0:02:52.3]} 11.
Re1 {[%clk 0:02:54.8]} 11... Bd7 {[%clk 0:02:50.5]} 12. Rb1 {[%clk 0:02:53.3]}
12... h6 {[%clk 0:02:40.4]} 13. b3 {[%clk 0:02:45.3]} 13... a5 {[%clk
0:02:39.4]} 14. Bf4 {[%clk 0:02:43.7]} 14... g5 {[%clk 0:02:34.8]} 15. Bc1
{[%clk 0:02:38.7]} 15... c6 {[%clk 0:02:28.5]} 16. Kh2 {[%clk 0:02:37.8]} 16...
Qb6 {[%clk 0:02:15.4]} 17. Bb2 {[%clk 0:02:10.8]} 17... a4 {[%clk 0:02:09.7]}
18. Ba1 {[%clk 0:01:39.2]} 18... axb3 {[%clk 0:02:05]} 19. axb3 {[%clk
0:01:40.1]} 19... Qb4 {[%clk 0:01:58]} 20. Nc2 {[%clk 0:01:37.5]} 20... Qb6
{[%clk 0:01:51.8]} 21. Qxd6 {[%clk 0:01:29.2]} 21... Re6 {[%clk 0:01:37.5]} 22.
Qd1 {[%clk 0:01:22]} 22... Rd8 {[%clk 0:01:35]} 23. b4 {[%clk 0:01:17.1]} 23...
Na6 {[%clk 0:01:26.2]} 24. c5 {[%clk 0:01:14.2]} 24... Qc7 {[%clk 0:01:24.1]}
25. Qe2 {[%clk 0:01:05.5]} 25... Bc8 {[%clk 0:01:16.8]} 26. Rbd1 {[%clk
0:01:03.2]} 26... Rde8 {[%clk 0:01:14.4]} 27. Qc4 {[%clk 0:00:49.8]} 27... R6e7
{[%clk 0:01:02]} 28. Rd6 {[%clk 0:00:48]} 28... Be6 {[%clk 0:00:58.2]} 29. Qd3
{[%clk 0:00:47.3]} 29... Nd7 {[%clk 0:00:57.5]} 30. f4 {[%clk 0:00:38.6]} 30...
h5 {[%clk 0:00:39.5]} 31. e5 {[%clk 0:00:21.9]} 31... h4 {[%clk 0:00:37]} 32.
Ne4 {[%clk 0:00:21.8]} 32... hxg3+ {[%clk 0:00:35]} 33. Qxg3 {[%clk 0:00:21.9]}
33... gxf4 {[%clk 0:00:35.6]} 34. Qxf4 {[%clk 0:00:21.2]} 34... Nf8 {[%clk
0:00:33.7]} 35. Nf6+ {[%clk 0:00:19.1]} 35... Bxf6 {[%clk 0:00:27.9]} 36. exf6
{[%clk 0:00:19.4]} 36... Ng6 {[%clk 0:00:28.5]} 37. Qh6 {[%clk 0:00:18.8]} 37...
Rd7 {[%clk 0:00:27.5]} 38. Qg7# {[%clk 0:00:18.9]} 1-0

[Event "Early-Titled-Tuesday-Blitz-April-23-2024"]
[Site "Chess.com"]
[Date "2024.04.23"]
[Round "8"]
[White "Kimkibo"]
[Black "Kazmin_Semyon"]
[Result "1-0"]
[WhiteElo "2441"]
[BlackElo "2555"]
[TimeControl "180+1"]
[EndTime "9:31:27 PDT"]
[Termination "Kimkibo won by checkmate"]

1. d4 {[%clk 0:03:00]} 1... Nf6 {[%clk 0:02:58.4]} 2. Nf3 {[%clk 0:02:59.8]}
2... d5 {[%clk 0:02:55.7]} 3. Bf4 {[%clk 0:02:58.7]} 3... c5 {[%clk 0:02:50.2]}
4. e3 {[%clk 0:02:57.4]} 4... Nc6 {[%clk 0:02:49.2]} 5. Nbd2 {[%clk 0:02:55.8]}
5... Qb6 {[%clk 0:02:45.5]} 6. dxc5 {[%clk 0:02:52.8]} 6... Qxb2 {[%clk
0:02:42.8]} 7. Rb1 {[%clk 0:02:50.9]} 7... Qc3 {[%clk 0:02:43]} 8. Bb5 {[%clk
0:02:48.7]} 8... Bd7 {[%clk 0:02:41.2]} 9. O-O {[%clk 0:02:47]} 9... e6 {[%clk
0:02:40.9]} 10. Bd3 {[%clk 0:02:46.5]} 10... Na5 {[%clk 0:02:35.4]} 11. e4
{[%clk 0:02:39.1]} 11... Bxc5 {[%clk 0:02:25.8]} 12. exd5 {[%clk 0:02:27]} 12...
Nxd5 {[%clk 0:02:15.1]} 13. Ne4 {[%clk 0:02:19.5]} 13... Qa3 {[%clk 0:02:12.4]}
14. Bc1 {[%clk 0:02:06.5]} 14... Qxa2 {[%clk 0:02:05.7]} 15. Rb2 {[%clk
0:02:04.8]} 15... Qa1 {[%clk 0:01:52.7]} 16. Nxc5 {[%clk 0:02:00.3]} 16... Bc6
{[%clk 0:01:53]} 17. Nb3 {[%clk 0:01:47.2]} 17... Nxb3 {[%clk 0:01:50.8]} 18.
Rxb3 {[%clk 0:01:47]} 18... O-O-O {[%clk 0:01:44.5]} 19. Qe2 {[%clk 0:01:32.5]}
19... Qa4 {[%clk 0:01:42.2]} 20. Ne5 {[%clk 0:01:29.4]} 20... Rhf8 {[%clk
0:01:33.5]} 21. Ba3 {[%clk 0:01:21.4]} 21... Nf4 {[%clk 0:01:28.5]} 22. Qg4
{[%clk 0:00:41.8]} 22... Rd4 {[%clk 0:00:56.5]} 23. Nxc6 {[%clk 0:00:29.5]}
23... Nxd3 {[%clk 0:00:52]} 24. Qxd4 {[%clk 0:00:02.8]} 24... Qxd4 {[%clk
0:00:51.4]} 25. Nxd4 {[%clk 0:00:03.4]} 25... Rd8 {[%clk 0:00:52.3]} 26. cxd3
{[%clk 0:00:02.7]} 26... e5 {[%clk 0:00:53]} 27. Rc1+ {[%clk 0:00:03.2]} 27...
Kb8 {[%clk 0:00:53.3]} 28. Nf5 {[%clk 0:00:03.6]} 28... Ka8 {[%clk 0:00:54.2]}
29. Be7 {[%clk 0:00:03.1]} 29... Re8 {[%clk 0:00:53.7]} 30. Nd6 {[%clk
0:00:01.8]} 30... Rb8 {[%clk 0:00:54.1]} 31. Rc8 {[%clk 0:00:02.2]} 31... a5
{[%clk 0:00:55]} 32. Rxb8+ {[%clk 0:00:02]} 32... Ka7 {[%clk 0:00:55.9]} 33.
R3xb7+ {[%clk 0:00:02.5]} 33... Ka6 {[%clk 0:00:56.3]} 34. Rb6+ {[%clk
0:00:02.9]} 34... Ka7 {[%clk 0:00:56]} 35. R8b7+ {[%clk 0:00:03.8]} 35... Ka8
{[%clk 0:00:55.7]} 36. Nb5 {[%clk 0:00:04.6]} 36... a4 {[%clk 0:00:55.9]} 37.
Nc7# {[%clk 0:00:05.5]} 1-0